fUST/lending_fUST_20240508
["ID","MTS","AMOUNT","RATE_DAILY","PERIOD"]
[326611044,1715139048024,-327.89169166,0.00015996,2]
[326611045,1715139048034,-500.0,0.00015996,2]
[326611046,1715139048044,-500.0,0.00015996,2]
[326611047,1715139048053,-155.033934,0.00015996,2]
[326611048,1715139048063,-654.7,0.00015996,2]
[326611049,1715139048072,-151.0,0.00015996,2]
[326611050,1715139048082,-500.0,0.00015996,2]
[326611051,1715139048091,-500.0,0.00015996,2]
[326611052,1715139048102,-500.0,0.00015996,2]
[326611053,1715139048112,-500.0,0.00015997,2]
[326611054,1715139048121,-500.0,0.00015997,2]
[326611055,1715139048131,-500.0,0.00015997,2]
[326611056,1715139048140,-599.62911852,0.00015997,2]
[326611057,1715139048150,-894.11068204,0.00016,2]
[326611058,1715139048159,-7968.97973032,0.00016,2]
[326611059,1715139048169,-993.22973099,0.00016,2]
[326611060,1715139048179,-116023.39422821,0.00016,2]
[326611061,1715139048189,-620.05503172,0.00016,2]
[326611062,1715139048198,-151.0,0.00016,2]
[326611063,1715139048208,-151.0,0.00016,2]
[326611064,1715139048217,-285.11656858,0.00016016,2]
[326611065,1715139048227,-200.1799128,0.00016017,2]
[326611066,1715139048236,-235.93722029,0.00016017,2]
[326611067,1715139048246,-1576.87228316,0.00016017,2]
[326611068,1715139048256,-374.2,0.00016178,2]
[326611069,1715139048265,-150.0,0.00016178,2]
[326611070,1715139048275,-2927.24,0.00016267,2]
[326611071,1715139048284,-3348.31,0.00016267,2]
[326611072,1715139048294,-500.0,0.00016267,2]
[326611073,1715139048303,-500.0,0.00016267,2]
[326611074,1715139048312,-500.0,0.00016267,2]
[326611075,1715139048322,-164.05285402,0.00016267,2]
[326611088,1715140053682,558.17082547,0.00014997,2]
[326611089,1715140118711,718.7949124,9.999e-05,2]
[326611090,1715140124350,936.26137326,0.00014997,2]
[326611091,1715140136325,624.17424884,0.00014997,2]
[326611092,1715140154782,520.14520737,0.00014997,2]
[326611093,1715140174792,270.99565304,0.00014997,2]
[326611094,1715140192769,270.99565304,0.00014997,2]
[326611095,1715140208769,270.99565304,0.00014997,2]
[326611096,1715140226770,270.99565304,0.00014997,2]
[326611118,1715140239437,-362.69357446,0.00015068,2]
[326611123,1715140239448,-155.32436996,0.0001507,2]
[326611128,1715140239459,-1898.54482415,0.00015166,2]
[326611130,1715140239469,-155.26700169,0.00015166,2]
[326611135,1715140239479,-470.3104231,0.00015166,2]
[326611138,1715140239488,-154.73694719,0.00015166,2]
[326611140,1715140239497,-237.55661084,0.00015166,2]
[326611142,1715140239509,-316.2627358,0.00015166,2]
[326611144,1715140239518,-243.66919916,0.00015166,2]
[326611146,1715140239527,-544.5285151,0.00015167,2]
[326611148,1715140239536,-500.0,0.00015167,2]
[326611150,1715140239545,-1362.60298591,0.00015168,2]
[326611152,1715140239555,-154.84664203,0.00015168,2]
[326611154,1715140239564,-1700.79338396,0.00015168,2]
[326611156,1715140239574,-50676.36493857,0.00015168,2]
[326611157,1715140239584,-2158.16581824,0.00015169,2]
[326611160,1715140239594,-239.96806082,0.00015169,2]
[326611161,1715140239603,-528.3157185,0.00015169,2]
[326611164,1715140239612,-732.9001217,0.00015169,2]
[326611166,1715140239622,-500.0,0.00015169,2]
[326611168,1715140239632,-500.0,0.00015169,2]
[326611169,1715140239641,-501.24208979,0.00015169,2]
[326611171,1715140239651,-500.0,0.00015169,2]
[326611173,1715140239660,-500.0,0.00015169,2]
[326611175,1715140239670,-852.83,0.00015169,2]
[326611177,1715140239680,-506.18138326,0.00015169,2]
[326611179,1715140239689,-1118.93,0.00015169,2]
[326611181,1715140239699,-513.63529583,0.00015169,2]
[326611184,1715140239708,-504.07902032,0.00015169,2]
[326611185,1715140239718,-961.53,0.00015169,2]
[326611187,1715140239728,-500.0,0.00015169,2]
[326611190,1715140239738,-418.00503343,0.00015169,2]
[326611192,1715140239747,-500.0,0.00015169,2]
[326611194,1715140239758,-1641.41,0.00015169,2]
[326611195,1715140239767,-500.0,0.00015169,2]
[326611197,1715140239777,-504.43769609,0.00015169,2]
[326611199,1715140239786,-1990.76,0.00015169,2]
[326611201,1715140239796,-500.0,0.00015169,2]
[326611204,1715140239812,-500.0,0.00015169,2]
[326611207,1715140239826,-500.0,0.00015169,2]
[326611209,1715140239835,-1536.79,0.00015169,2]
[326611211,1715140239845,-500.0,0.00015169,2]
[326611213,1715140239855,-3124.63,0.00015169,2]
[326611215,1715140239865,-1713.83,0.00015169,2]
[326611217,1715140239874,-1664.17,0.00015169,2]
[326611219,1715140239885,-2728.9,0.00015169,2]
[326611221,1715140239894,-500.0,0.00015169,2]
[326611223,1715140239904,-497.22129951,0.00015169,2]
[326611225,1715140239913,-396.82341215,0.00015169,2]
[326611227,1715140239923,-500.0,0.00015169,2]
[326611229,1715140239933,-500.0,0.00015169,2]
[326611231,1715140239943,-500.0,0.00015169,2]
[326611233,1715140239953,-1711.07,0.00015169,2]
[326611235,1715140239962,-1947.36,0.00015169,2]
[326611237,1715140239973,-500.0,0.00015169,2]
[326611239,1715140239983,-503.93481116,0.00015169,2]
[326611241,1715140239993,-2621.88,0.00015169,2]
[326611243,1715140240003,-734.18,0.00015169,2]
[326611245,1715140240015,-500.0,0.00015169,2]
[326611247,1715140240026,-508.79653634,0.00015169,2]
[326611249,1715140240036,-500.0,0.00015169,2]
[326611251,1715140240046,-500.0,0.00015169,2]
[326611253,1715140240057,-988.1,0.00015169,2]
[326611255,1715140240068,-782.27,0.00015169,2]
[326611257,1715140240078,-899.0893145,0.0001517,2]
[326611259,1715140240088,-563.7194373,0.0001517,2]
[326611261,1715140240099,-1497.45148866,0.0001517,2]
[326611263,1715140240109,-5883.6024627,0.0001517,2]
[326611265,1715140240118,-500.0,0.0001517,2]
[326611281,1715140240343,-500.0,0.0001517,2]
[326611282,1715140240362,-500.0,0.0001517,2]
[326611283,1715140240374,-504.4069692,0.0001517,2]
[326611284,1715140240384,-875.14,0.0001517,2]
[326611285,1715140240393,-504.61641783,0.0001517,2]
[326611286,1715140240403,-500.0,0.0001517,2]
[326611287,1715140240414,-500.0,0.0001517,2]
[326611288,1715140240423,-500.0,0.0001517,2]
[326611289,1715140240433,-407.32984528,0.0001517,2]
[326611290,1715140240442,-500.0,0.0001517,2]
[326611291,1715140240454,-498.10818071,0.0001517,2]
[326611292,1715140240464,-803.47,0.0001517,2]
[326611293,1715140240473,-500.0,0.0001517,2]
[326611294,1715140240483,-1654.47,0.0001517,2]
[326611295,1715140240493,-500.0,0.0001517,2]
[326611296,1715140240502,-9814.19,0.0001517,2]
[326611297,1715140240513,-500.0,0.0001517,2]
[326611298,1715140240523,-828.08,0.0001517,2]
[326611299,1715140240533,-591.19,0.0001517,2]
[326611300,1715140240542,-500.0,0.0001517,2]
[326611301,1715140240552,-3507.32,0.0001517,2]
[326611302,1715140240561,-500.0,0.0001517,2]
[326611303,1715140240571,-154.85607246,0.0001517,2]
[326611304,1715140240581,-732.3,0.0001517,2]
[326611305,1715140240590,-500.0,0.0001517,2]
[326611306,1715140240600,-500.0,0.0001517,2]
[326611307,1715140240610,-504.00090539,0.0001517,2]
[326611308,1715140240620,-500.0,0.0001517,2]
[326611309,1715140240630,-309.69631333,0.0001517,2]
[326611310,1715140240640,-500.0,0.0001517,2]
[326611311,1715140240649,-172.15575758,0.0001517,2]
[326611312,1715140240659,-501.02157809,0.0001517,2]
[326611313,1715140240669,-500.0,0.0001517,2]
[326611314,1715140240679,-500.0,0.0001517,2]
[326611315,1715140240690,-503.10800664,0.0001517,2]
[326611316,1715140240699,-506.63474687,0.0001517,2]
[326611317,1715140240709,-500.0,0.0001517,2]
[326611318,1715140240719,-500.0,0.0001517,2]
[326611319,1715140240728,-503.8366194,0.0001517,2]
[326611320,1715140240738,-708.21,0.0001517,2]
[326611321,1715140240748,-313.93071885,0.0001517,2]
[326611322,1715140240759,-500.0,0.00015171,2]
[326611323,1715140240769,-374.98129136,0.00015171,2]
[326611324,1715140240778,-500.0,0.00015171,2]
[326611325,1715140240788,-501.96826859,0.00015171,2]
[326611326,1715140240797,-515.12890509,0.00015171,2]
[326611327,1715140240807,-500.0,0.00015171,2]
[326611328,1715140240817,-500.0,0.00015171,2]
[326611329,1715140240826,-501.35773235,0.00015171,2]
[326611330,1715140240836,-500.0,0.00015171,2]
[326611331,1715140240845,-503.65686392,0.00015171,2]
[326611332,1715140240855,-502.68157883,0.00015171,2]
[326611333,1715140240864,-500.14585222,0.00015171,2]
[326611334,1715140240874,-500.0,0.00015171,2]
[326611335,1715140240883,-503.53530209,0.00015171,2]
[326611336,1715140240892,-500.0,0.00015171,2]
[326611337,1715140240902,-510.03184808,0.00015171,2]
[326611338,1715140240911,-500.0,0.00015171,2]
[326611339,1715140240920,-244.61878013,0.00015171,2]
[326611340,1715140240930,-500.0,0.00015171,2]
[326611341,1715140240939,-299.62798764,0.00015171,2]
[326611342,1715140240949,-1016.33,0.00015171,2]
[326611343,1715140240958,-500.0,0.00015171,2]
[326611344,1715140240967,-503.07661905,0.00015171,2]
[326611345,1715140240978,-502.530519,0.00015171,2]
[326611346,1715140240987,-600.15,0.00015171,2]
[326611347,1715140240996,-505.81082302,0.00015171,2]
[326611348,1715140241006,-500.0,0.00015171,2]
[326611349,1715140241016,-501.19286947,0.00015171,2]
[326611350,1715140241026,-500.0,0.00015171,2]
[326611351,1715140241035,-500.0,0.00015171,2]
[326611352,1715140241044,-228.44170514,0.00015171,2]
[326611353,1715140241055,-501.11946726,0.00015171,2]
[326611354,1715140241064,-624.7688326,0.00015171,2]
[326611355,1715140241074,-500.0,0.00015171,2]
[326611356,1715140241083,-504.5022126,0.00015171,2]
[326611357,1715140241092,-500.0,0.00015171,2]
[326611358,1715140241102,-502.13694979,0.00015171,2]
[326611359,1715140241111,-500.0,0.00015171,2]
[326611360,1715140241121,-500.0,0.00015171,2]
[326611361,1715140241130,-412.08463621,0.00015171,2]
[326611362,1715140241139,-572.53408447,0.00015171,2]
[326611363,1715140241149,-500.0,0.00015171,2]
[326611364,1715140241158,-509.5482416,0.00015171,2]
[326611365,1715140241168,-500.0,0.00015171,2]
[326611366,1715140241177,-494.19497672,0.00015171,2]
[326611367,1715140241186,-501.28138295,0.00015171,2]
[326611368,1715140241196,-500.0,0.00015171,2]
[326611369,1715140241205,-500.0,0.00015171,2]
[326611370,1715140241214,-500.95631335,0.00015171,2]
[326611371,1715140241223,-500.0,0.00015171,2]
[326611372,1715140241232,-500.0,0.00015171,2]
[326611373,1715140241242,-500.0,0.00015171,2]
[326611374,1715140241251,-500.0,0.00015171,2]
[326611375,1715140241261,-466.92584556,0.00015171,2]
[326611376,1715140241270,-502.05774901,0.00015171,2]
[326611377,1715140241279,-500.0,0.00015171,2]
[326611378,1715140241289,-152.15118119,0.00015171,2]
[326611379,1715140241298,-505.61034041,0.00015171,2]
[326611380,1715140241307,-252.66240127,0.00015171,2]
[326611381,1715140241317,-644.56018378,0.00015172,2]
[326611382,1715140241326,-500.0,0.00015172,2]
[326611383,1715140241336,-500.0,0.00015172,2]
[326611384,1715140241345,-500.65388214,0.00015172,2]
[326611385,1715140241354,-500.76805601,0.00015172,2]
[326611386,1715140241364,-155.32436996,0.00015346,2]
[326611387,1715140241377,-500.0,0.00015441,2]
[326611388,1715140241387,-500.0,0.00015443,2]
[326611389,1715140241397,-500.0,0.00015443,2]
[326611390,1715140241406,-500.0,0.00015443,2]
[326611391,1715140241418,-852.83,0.00015443,2]
[326611392,1715140241427,-1118.93,0.00015443,2]
[326611393,1715140241436,-961.53,0.00015443,2]
[326611394,1715140241447,-500.0,0.00015443,2]
[326611395,1715140241457,-1641.41,0.00015443,2]
[326611396,1715140241466,-500.0,0.00015443,2]
[326611397,1715140241476,-1990.76,0.00015443,2]
[326611398,1715140241485,-1536.79,0.00015443,2]
[326611399,1715140241495,-3124.63,0.00015443,2]
[326611400,1715140241506,-1713.83,0.00015443,2]
[326611401,1715140241516,-1664.17,0.00015443,2]
[326611402,1715140241526,-2728.9,0.00015443,2]
[326611403,1715140241535,-500.0,0.00015443,2]
[326611404,1715140241545,-500.0,0.00015443,2]
[326611405,1715140241554,-500.0,0.00015443,2]
[326611406,1715140241563,-500.0,0.00015443,2]
[326611407,1715140241574,-1711.07,0.00015443,2]
[326611408,1715140241583,-1947.36,0.00015443,2]
[326611409,1715140241593,-500.0,0.00015443,2]
[326611410,1715140241602,-2621.88,0.00015443,2]
[326611411,1715140241612,-734.18,0.00015443,2]
[326611412,1715140241622,-500.0,0.00015443,2]
[326611413,1715140241631,-500.0,0.00015443,2]
[326611414,1715140241641,-500.0,0.00015443,2]
[326611415,1715140241650,-988.1,0.00015443,2]
[326611416,1715140241659,-782.27,0.00015443,2]
[326611417,1715140241668,-500.0,0.00015444,2]
[326611418,1715140241678,-500.0,0.00015444,2]
[326611419,1715140241688,-500.0,0.00015444,2]
[326611420,1715140241697,-875.14,0.00015444,2]
[326611421,1715140241706,-500.0,0.00015444,2]
[326611422,1715140241715,-500.0,0.00015444,2]
[326611423,1715140241725,-500.0,0.00015444,2]
[326611424,1715140241734,-500.0,0.00015444,2]
[326611425,1715140241743,-803.47,0.00015444,2]
[326611426,1715140241753,-500.0,0.00015444,2]
[326611427,1715140241763,-1654.47,0.00015444,2]
[326611428,1715140241772,-500.0,0.00015444,2]
[326611429,1715140241782,-9814.19,0.00015444,2]
[326611430,1715140241791,-500.0,0.00015444,2]
[326611431,1715140241801,-828.08,0.00015444,2]
[326611432,1715140241810,-591.19,0.00015444,2]
[326611433,1715140241820,-500.0,0.00015444,2]
[326611434,1715140241830,-3507.32,0.00015444,2]
[326611435,1715140241839,-217.69931834,0.00015444,2]
[326611436,1715140241849,-732.3,0.00015444,2]
[326611437,1715140241858,-500.0,0.00015444,2]
[326611438,1715140241868,-500.0,0.00015444,2]
[326611439,1715140241877,-500.0,0.00015444,2]
[326611440,1715140241887,-500.0,0.00015444,2]
[326611441,1715140241897,-500.0,0.00015444,2]
[326611442,1715140241906,-500.0,0.00015444,2]
[326611443,1715140241916,-502.39675708,0.00015444,2]
[326611444,1715140241926,-503.66905891,0.00015444,2]
[326611445,1715140241936,-708.21,0.00015444,2]
[326611446,1715140241945,-500.0,0.00015445,2]
[326611447,1715140241954,-500.0,0.00015445,2]
[326611448,1715140241963,-500.0,0.00015445,2]
[326611449,1715140241972,-500.0,0.00015445,2]
[326611450,1715140241984,-500.0,0.00015445,2]
[326611451,1715140241994,-1016.33,0.00015445,2]
[326611452,1715140242003,-500.0,0.00015445,2]
[326611453,1715140242013,-600.15,0.00015445,2]
[326611454,1715140242022,-573.36515402,0.00015445,2]
[326611455,1715140242032,-505.27509672,0.00015445,2]
[326611456,1715140242042,-500.0,0.00015445,2]
[326611457,1715140242051,-505.08778106,0.00015445,2]
[326611458,1715140242060,-500.0,0.00015445,2]
[326611459,1715140242070,-500.0,0.00015445,2]
[326611460,1715140242079,-500.0,0.00015445,2]
[326611461,1715140242088,-500.0,0.00015445,2]
[326611462,1715140242098,-502.84002691,0.00015445,2]
[326611463,1715140242108,-502.85675346,0.00015445,2]
[326611464,1715140242117,-502.16686497,0.00015445,2]
[326611465,1715140242127,-500.0,0.00015445,2]
[326611466,1715140242136,-500.0,0.00015445,2]
[326611467,1715140242145,-500.0,0.00015446,2]
[326611468,1715140242155,-500.0,0.00015446,2]
[326611469,1715140242164,-435.07662337,0.0001552,2]
[326611470,1715140242173,-306.5617653,0.000156,2]
[326611471,1715140242183,-193.34132073,0.00015618,2]
[326611472,1715140242192,-781.25749037,0.00015619,2]
[326611473,1715140242202,-309.70492923,0.00015619,2]
[326611474,1715140242212,-155.32436996,0.00015622,2]
[326611475,1715140242221,-312.97734818,0.00015717,2]
[326611476,1715140242230,-500.0,0.00015717,2]
[326611477,1715140242240,-500.0,0.00015717,2]
[326611478,1715140242250,-852.83,0.00015717,2]
[326611479,1715140242260,-1118.93,0.00015717,2]
[326611480,1715140242269,-961.53,0.00015717,2]
[326611481,1715140242278,-500.0,0.00015717,2]
[326611482,1715140242288,-1641.41,0.00015717,2]
[326611485,1715140242298,-500.0,0.00015717,2]
[326611488,1715140242308,-1990.76,0.00015717,2]
[326611491,1715140242317,-1536.79,0.00015717,2]
[326611493,1715140242327,-3124.63,0.00015717,2]
[326611496,1715140242336,-1713.83,0.00015717,2]
[326611499,1715140242346,-1664.17,0.00015717,2]
[326611501,1715140242355,-500.0,0.00015717,2]
[326611503,1715140242364,-2728.9,0.00015717,2]
[326611504,1715140242375,-500.0,0.00015717,2]
[326611506,1715140242387,-500.0,0.00015717,2]
[326611508,1715140242396,-542.15974335,0.00015717,2]
[326611510,1715140242406,-1711.07,0.00015717,2]
[326611512,1715140242416,-1947.36,0.00015717,2]
[326611514,1715140242427,-466.34823683,0.00015717,2]
[326611516,1715140242436,-2621.88,0.00015717,2]
[326611518,1715140242447,-734.18,0.00015717,2]
[326611520,1715140242459,-500.0,0.00015717,2]
[326611522,1715140242468,-500.0,0.00015717,2]
[326611523,1715140242478,-583.88188468,0.00015717,2]
[326611524,1715140242488,-988.1,0.00015717,2]
[326611525,1715140242497,-782.27,0.00015717,2]
[326611527,1715140242507,-474.9154708,0.00015718,5]
[326611529,1715140242517,-500.0,0.00015718,2]
[326611531,1715140242526,-500.0,0.00015718,2]
[326611533,1715140242536,-500.0,0.00015718,2]
[326611535,1715140242544,-875.14,0.00015718,2]
[326611537,1715140242555,-500.0,0.00015718,2]
[326611539,1715140242564,-500.0,0.00015718,2]
[326611541,1715140242574,-500.0,0.00015718,2]
[326611543,1715140242583,-500.0,0.00015718,2]
[326611545,1715140242592,-803.47,0.00015718,2]
[326611547,1715140242601,-500.0,0.00015718,2]
[326611548,1715140242611,-1654.47,0.00015718,2]
[326611550,1715140242620,-500.0,0.00015718,2]
[326611552,1715140242630,-9814.19,0.00015718,2]
[326611554,1715140242639,-500.0,0.00015718,2]
[326611556,1715140242648,-828.08,0.00015718,2]
[326611558,1715140242658,-591.19,0.00015718,2]
[326611560,1715140242667,-500.0,0.00015718,2]
[326611562,1715140242677,-3507.32,0.00015718,2]
[326611564,1715140242686,-732.3,0.00015718,2]
[326611566,1715140242696,-500.0,0.00015718,2]
[326611567,1715140242705,-500.0,0.00015718,2]
[326611568,1715140242715,-500.0,0.00015718,2]
[326611569,1715140242724,-500.0,0.00015718,2]
[326611570,1715140242734,-708.21,0.00015718,2]
[326611572,1715140242743,-500.0,0.00015719,2]
[326611573,1715140242752,-500.0,0.00015719,2]
[326611574,1715140242763,-500.0,0.00015719,2]
[326611575,1715140242772,-500.0,0.00015719,2]
[326611576,1715140242782,-500.0,0.00015719,2]
[326611577,1715140242792,-1016.33,0.00015719,2]
[326611578,1715140242801,-500.0,0.00015719,2]
[326611579,1715140242810,-600.15,0.00015719,2]
[326611580,1715140242819,-500.0,0.00015719,2]
[326611581,1715140242829,-500.0,0.00015719,2]
[326611582,1715140242838,-500.0,0.00015719,2]
[326611583,1715140242848,-500.0,0.00015719,2]
[326611584,1715140242857,-500.0,0.00015719,2]
[326611585,1715140242866,-500.0,0.00015719,2]
[326611586,1715140242876,-500.0,0.00015719,2]
[326611587,1715140242886,-500.0,0.0001572,2]
[326611588,1715140242896,-500.0,0.0001572,2]
[326611589,1715140242905,-162.24108995,0.00015834,2]
[326611590,1715140242914,-166.901206,0.0001589,2]
[326611591,1715140242924,-179.386937,0.0001589,2]
[326611592,1715140242933,-153.1762104,0.0001589,2]
[326611593,1715140242942,-168.7780671,0.0001589,2]
[326611594,1715140242951,-153.0,0.0001589,2]
[326611595,1715140242961,-160.8557021,0.0001589,2]
[326611596,1715140242970,-153.0,0.0001589,2]
[326611597,1715140242980,-153.0,0.0001589,2]
[326611598,1715140242991,-288.74297911,0.0001589,2]
[326611599,1715140243257,270.99565304,0.00014997,2]
[326611620,1715140273960,270.99565304,0.00014997,2]
[326611621,1715140291966,270.99565304,0.00014997,2]
[326611623,1715140313963,270.99565304,0.00014997,2]
[326611624,1715140329971,270.99565304,0.00014997,2]
[326611626,1715140350992,270.99565304,0.00014997,2]
[326611627,1715140374006,410.91471379,0.00014997,2]
[326611630,1715140670218,1400.17327806,9.999e-05,2]
[326611639,1715141425026,57012.6497293,0.00015,2]
[326611641,1715141432471,-236.22247933,0.00015065,2]
[326611643,1715141432480,-236.22247933,0.00015134,2]
[326611646,1715141432489,-237.55661084,0.00015163,2]
[326611649,1715141432498,-154.73694719,0.00015163,2]
[326611652,1715141432507,-470.3104231,0.00015163,2]
[326611655,1715141432517,-155.26700169,0.00015163,2]
[326611660,1715141432527,-1898.54482415,0.00015163,2]
[326611662,1715141432537,-316.2627358,0.00015164,2]
[326611666,1715141432546,-988.1,0.00015164,2]
[326611667,1715141432555,-500.0,0.00015164,2]
[326611669,1715141432564,-500.0,0.00015164,2]
[326611671,1715141432573,-500.0,0.00015164,2]
[326611673,1715141432583,-515.05,0.00015164,2]
[326611675,1715141432592,-500.0,0.00015164,2]
[326611677,1715141432606,-500.0,0.00015164,2]
[326611678,1715141432615,-500.0,0.00015164,2]
[326611679,1715141432624,-893.44,0.00015164,2]
[326611680,1715141432633,-1172.22,0.00015164,2]
[326611681,1715141432642,-961.53,0.00015164,2]
[326611682,1715141432652,-504.07902032,0.00015164,2]
[326611683,1715141432661,-500.0,0.00015164,2]
[326611684,1715141432670,-500.0,0.00015164,2]
[326611685,1715141432679,-504.43769609,0.00015164,2]
[326611686,1715141432688,-1641.41,0.00015164,2]
[326611687,1715141432697,-500.0,0.00015164,2]
[326611688,1715141432706,-500.0,0.00015164,2]
[326611689,1715141432719,-1990.76,0.00015164,2]
[326611690,1715141432728,-500.0,0.00015164,2]
[326611691,1715141432737,-500.0,0.00015164,2]
[326611692,1715141432746,-3124.63,0.00015164,2]
[326611693,1715141432755,-1713.83,0.00015164,2]
[326611694,1715141432765,-500.0,0.00015164,2]
[326611695,1715141432774,-1536.79,0.00015164,2]
[326611696,1715141432784,-2728.9,0.00015164,2]
[326611697,1715141432794,-500.0,0.00015164,2]
[326611698,1715141432803,-1664.17,0.00015164,2]
[326611699,1715141432813,-500.0,0.00015164,2]
[326611700,1715141432822,-500.0,0.00015164,2]
[326611701,1715141432832,-1947.36,0.00015164,2]
[326611702,1715141432841,-500.0,0.00015164,2]
[326611703,1715141432850,-734.18,0.00015164,2]
[326611704,1715141432860,-500.0,0.00015164,2]
[326611705,1715141432869,-1711.07,0.00015164,2]
[326611706,1715141432878,-500.0,0.00015164,2]
[326611707,1715141432887,-500.0,0.00015164,2]
[326611708,1715141432896,-500.0,0.00015164,2]
[326611709,1715141432905,-638.58570877,0.00015164,2]
[326611731,1715141442456,-1983.29429123,0.00015164,2]
[326611734,1715141442465,-500.0,0.00015164,2]
[326611737,1715141442475,-946.93,0.00015164,2]
[326611740,1715141442485,-508.79653634,0.00015164,2]
[326611742,1715141442494,-1497.45148866,0.00015165,2]
[326611744,1715141442503,-563.7194373,0.00015165,2]
[326611746,1715141442512,-899.0893145,0.00015165,2]
[326611748,1715141442522,-5883.6024627,0.00015165,2]
[326611750,1715141442533,-528.3157185,0.00015165,2]
[326611751,1715141442543,-2158.16581824,0.00015165,2]
[326611753,1715141442554,-239.96806082,0.00015165,2]
[326611755,1715141442563,-1700.79338396,0.00015165,2]
[326611757,1715141442573,-544.5285151,0.00015165,2]
[326611758,1715141442582,-154.84664203,0.00015165,2]
[326611760,1715141442591,-1362.60298591,0.00015165,2]
[326611762,1715141442601,-50676.36493857,0.00015165,2]
[326611764,1715141442611,-243.66919916,0.00015165,2]
[326611766,1715141442620,-777.34867068,0.00015166,2]
[326611768,1715141442629,-500.0,0.00015166,2]
[326611770,1715141442639,-500.0,0.00015166,2]
[326611772,1715141442648,-265.83733156,0.00015166,2]
[326611773,1715141442657,-504.10349488,0.00015166,2]
[326611775,1715141442667,-500.0,0.00015166,2]
[326611777,1715141442676,-501.24208979,0.00015166,2]
[326611779,1715141442686,-418.00503343,0.00015166,2]
[326611780,1715141442696,-500.0,0.00015166,2]
[326611783,1715141442712,-501.65646852,0.00015166,2]
[326611785,1715141442728,-510.21530336,0.00015166,2]
[326611787,1715141442738,-500.0,0.00015166,2]
[326611789,1715141442748,-501.44075826,0.00015166,2]
[326611791,1715141442759,-500.0,0.00015166,2]
[326611793,1715141442769,-273.01820624,0.00015166,2]
[326611795,1715141442779,-782.27,0.00015166,2]
[326611797,1715141442789,-10281.53,0.00015166,2]
[326611798,1715141442801,-1733.26,0.00015166,2]
[326611800,1715141442812,-500.0,0.00015166,2]
[326611802,1715141442821,-500.0,0.00015166,2]
[326611804,1715141442832,-500.0,0.00015166,2]
[326611806,1715141442841,-500.89614398,0.00015166,2]
[326611808,1715141442851,-516.71220776,0.00015166,2]
[326611810,1715141442860,-591.19,0.00015166,2]
[326611812,1715141442870,-500.0,0.00015166,2]
[326611814,1715141442879,-500.0,0.00015166,2]
[326611815,1715141442888,-500.0,0.00015166,2]
[326611817,1715141442898,-3507.32,0.00015166,2]
[326611819,1715141442907,-500.0,0.00015166,2]
[326611821,1715141442917,-502.31678219,0.00015166,2]
[326611823,1715141442926,-500.0,0.00015166,2]
[326611825,1715141442936,-500.0,0.00015166,2]
[326611827,1715141442945,-500.52797849,0.00015166,2]
[326611829,1715141442955,-500.0,0.00015166,2]
[326611830,1715141442964,-323.92383999,0.00015166,2]
[326611832,1715141442973,-485.58752744,0.00015166,2]
[326611834,1715141442983,-501.3256857,0.00015166,2]
[326611836,1715141442992,-502.221224,0.00015166,2]
[326611838,1715141443002,-500.0,0.00015166,2]
[326611840,1715141443011,-196.33538884,0.00015166,2]
[326611842,1715141443021,-500.0,0.00015166,2]
[326611844,1715141443033,-501.05568121,0.00015166,2]